bitfinex/quotes_BTCUSD_20230106
["timestamp","ask_amount","ask_price","bid_price","bid_amount"]
[1673036618928,2.11294169,16998.0,16997.0,0.04993968]
[1673036619943,1.24498693,16998.0,16997.0,0.04993968]
[1673036621191,1.45510407,16998.0,16997.0,0.04993968]
[1673036621440,2.11625491,16998.0,16997.0,0.04993968]
[1673036621689,2.11025491,16998.0,16995.0,0.01236171]
[1673036621951,1.46774023,16996.0,16995.0,0.01236171]
[1673036622195,2.47378823,16996.0,16995.0,0.01236171]
[1673036622437,2.48228823,16996.0,16995.0,0.01236171]
[1673036623426,1.314548,16996.0,16995.0,0.01236171]
[1673036623677,1.410548,16996.0,16995.0,0.01936171]
[1673036624706,1.710548,16996.0,16995.0,0.01936171]
[1673036626488,1.702048,16996.0,16995.0,0.01936171]
[1673036632049,1.702048,16996.0,16995.0,0.00936171]
[1673036632540,1.70133984,16996.0,16995.0,0.00936171]
[1673036634799,2.39820667,16996.0,16995.0,0.00936171]
[1673036635057,3.2744469,16996.0,16995.0,0.00936171]
[1673036635810,3.66759635,16996.0,16995.0,0.00936171]
[1673036636064,2.40670667,16996.0,16995.0,0.00936171]
[1673036638517,2.40670667,16996.0,16995.0,0.00436171]
[1673036642344,3.7744469,16996.0,16995.0,0.00436171]
[1673036644636,2.90670667,16996.0,16995.0,0.00436171]
[1673036644887,3.19737734,16996.0,16995.0,0.00436171]
[1673036645147,3.77518598,16996.0,16995.0,0.00436171]
[1673036647445,2.90670667,16996.0,16995.0,0.00436171]
[1673036647957,3.77541289,16996.0,16995.0,0.00436171]
[1673036650815,2.90670667,16996.0,16995.0,0.00436171]
[1673036651270,3.77589296,16996.0,16995.0,0.00436171]
[1673036652264,3.07902613,16996.0,16995.0,0.00436171]
[1673036653000,3.07902613,16996.0,16995.0,0.17776171]
[1673036654501,2.47052613,16996.0,16995.0,0.17776171]
[1673036654753,2.29401413,16996.0,16995.0,0.17776171]
[1673036655527,1.42482784,16996.0,16995.0,0.17776171]
[1673036657036,1.42482784,16996.0,16995.0,1.78492111]
[1673036657037,0.94831584,16996.0,16995.0,1.78492111]
[1673036658049,0.77180384,16996.0,16995.0,1.78492111]
[1673036658287,0.5,16996.0,16995.0,1.7836291]
[1673036658532,0.603,16996.0,16995.0,1.7916291]
[1673036658804,0.5,16996.0,16995.0,1.7836291]
[1673036659057,0.51,16996.0,16995.0,1.8626291]
[1673036659310,0.51,16996.0,16995.0,3.0036291]
[1673036659311,0.50295744,16996.0,16995.0,3.0036291]
[1673036659832,0.07075,16998.0,16995.0,3.5920371]
[1673036660105,0.07075,16998.0,16997.0,0.5202]
[1673036660359,0.07075,16998.0,16997.0,1.78162776]
[1673036661603,0.11875,16998.0,16997.0,1.78162776]
[1673036661853,0.4186,16998.0,16997.0,1.78162776]
[1673036662114,0.4666,16998.0,16997.0,1.78462776]
[1673036662383,0.3706,16998.0,16997.0,1.78178121]
[1673036662631,0.4186,16998.0,16997.0,1.78478121]
[1673036663123,0.3706,16998.0,16997.0,1.60822776]
[1673036663367,0.550091,16998.0,16997.0,1.038461]
[1673036664352,1.92142772,16998.0,16997.0,0.865061]
[1673036664603,1.92142772,16998.0,16997.0,0.2604]
[1673036665107,2.5532645,16998.0,16997.0,0.2604]
[1673036665365,2.91315848,16998.0,16997.0,0.087]
[1673036665609,3.78234477,16998.0,16997.0,0.087]
[1673036665854,3.42245079,16998.0,16997.0,0.087]
[1673036667368,0.64433052,16997.0,16994.0,0.75428504]
[1673036667625,0.59489528,16995.0,16994.0,0.09751828]
[1673036667877,1.84793928,16995.0,16994.0,0.26951828]
[1673036668637,1.84793928,16995.0,16994.0,0.27451828]
[1673036668638,1.253044,16995.0,16994.0,0.27451828]
[1673036668886,1.253044,16995.0,16994.0,0.26951828]
[1673036669172,1.87895103,16995.0,16994.0,0.27451828]
[1673036670471,1.27895103,16995.0,16994.0,0.27451828]
[1673036671248,1.87895103,16995.0,16994.0,0.27451828]
[1673036673259,1.87895103,16995.0,16994.0,0.25051828]
[1673036674736,1.27895103,16995.0,16994.0,0.25051828]
[1673036677485,2.06774757,16995.0,16994.0,0.25051828]
[1673036677743,1.47284054,16995.0,16994.0,0.25051828]
[1673036678002,1.47284054,16995.0,16994.0,0.1206]
[1673036678273,1.21031217,16995.0,16994.0,0.1206]
[1673036679049,1.21031217,16995.0,16994.0,0.005]
[1673036679804,0.91031217,16995.0,16994.0,0.005]
[1673036680302,1.77949846,16995.0,16994.0,0.005]
[1673036680553,2.05275141,16995.0,16994.0,0.005]
[1673036681114,4.02835141,16995.0,16994.0,0.005]
[1673036681606,3.99735141,16995.0,16991.0,0.12691527]
[1673036681865,0.6,16992.0,16983.0,0.53889946]
[1673036682111,0.6,16992.0,16984.0,0.7]
[1673036682112,0.17629633,16986.0,16984.0,0.7]
[1673036682434,0.44074082,16986.0,16985.0,0.3453]
[1673036682634,0.44074082,16986.0,16985.0,0.2305]
[1673036682635,0.79333346,16986.0,16985.0,0.2305]
[1673036682887,0.82888898,16988.0,16985.0,0.1149]
[1673036682888,0.52888898,16987.0,16985.0,0.1149]
[1673036683138,0.3,16986.0,16985.0,0.7]
[1673036683382,0.54954873,16986.0,16985.0,0.8386]
[1673036683633,0.27426084,16986.0,16985.0,0.8146]
[1673036683906,0.26126084,16986.0,16985.0,0.1146]
[1673036684137,1.05410591,16986.0,16985.0,0.2294]
[1673036684387,0.71573156,16986.0,16985.0,0.2524]
[1673036684633,1.05409119,16986.0,16982.0,1.177667]
[1673036684888,0.70959148,16985.0,16984.0,0.1156]
[1673036685166,0.70959148,16985.0,16984.0,0.3458]
[1673036685661,1.06195691,16985.0,16984.0,0.3458]
[1673036685920,0.70959148,16985.0,16984.0,0.3458]
[1673036686185,0.72459148,16985.0,16984.0,0.951461]
[1673036686424,0.72474148,16985.0,16984.0,0.951461]
[1673036686681,0.90092379,16985.0,16984.0,0.951161]
[1673036686941,1.98084066,16985.0,16984.0,0.834961]
[1673036687185,1.71656597,16985.0,16984.0,0.950561]
[1673036687431,1.98071273,16985.0,16984.0,0.950561]
[1673036687702,1.71656597,16985.0,16984.0,0.950561]
[1673036687941,1.54022116,16985.0,16984.0,0.950561]
[1673036688192,1.36369562,16985.0,16984.0,0.34053357]
[1673036688437,1.36369562,16985.0,16984.0,0.34038]
[1673036688760,1.54007116,16985.0,16984.0,0.34038]
[1673036688968,0.90061921,16985.0,16984.0,0.34038]
[1673036689163,0.72424386,16985.0,16984.0,0.34038]
[1673036689413,0.72424386,16985.0,16984.0,0.34027214]
[1673036689414,0.90061921,16985.0,16984.0,0.34027214]
[1673036689662,1.80417486,16985.0,16984.0,0.34027214]
[1673036689917,2.33967586,16985.0,16984.0,0.34027214]
[1673036690162,2.16335104,16985.0,16984.0,0.34027214]
[1673036690412,2.16335104,16985.0,16984.0,0.001]
[1673036690677,1.86335104,16985.0,16975.0,2.6722]
[1673036690922,0.94849174,16984.0,16978.0,0.6191]
[1673036691168,0.83056974,16984.0,16979.0,0.4]
[1673036691427,0.83056974,16984.0,16983.0,0.2305]
[1673036691665,0.26957178,16984.0,16983.0,0.950761]
[1673036692157,1.07355219,16984.0,16983.0,0.95106777]
[1673036692414,0.83803719,16984.0,16983.0,0.95106777]
[1673036692686,0.26957178,16984.0,16983.0,0.925761]
[1673036692937,0.28357178,16984.0,16983.0,0.925761]
[1673036693195,0.28357178,16984.0,16983.0,0.92606777]
[1673036693953,0.28372178,16984.0,16983.0,0.60496777]
[1673036694205,0.28372178,16984.0,16983.0,0.74710677]
[1673036694462,0.28372178,16984.0,16983.0,1.35176777]
[1673036695023,0.28372178,16984.0,16983.0,0.95176777]
[1673036695831,0.94452898,16984.0,16983.0,0.951461]
[1673036696079,0.28357178,16984.0,16983.0,0.951461]
[1673036696635,0.28357178,16984.0,16983.0,0.936461]
[1673036697707,0.28372178,16984.0,16983.0,0.936461]
[1673036698997,0.28372178,16984.0,16983.0,1.809885]
[1673036699529,0.28357178,16984.0,16983.0,2.40193406]
[1673036700030,0.28357178,16984.0,16983.0,1.81311006]
[1673036700344,0.28357178,16984.0,16983.0,1.40811006]
[1673036700571,0.28357178,16984.0,16983.0,1.404885]
[1673036701551,0.28372178,16984.0,16983.0,1.804885]
[1673036702599,0.28372178,16984.0,16983.0,1.404885]
[1673036703376,0.28357178,16984.0,16983.0,1.404885]
[1673036703625,0.28357178,16984.0,16983.0,1.40504624]
[1673036704384,0.28357178,16984.0,16983.0,1.99387024]
[1673036705417,0.28372178,16984.0,16983.0,1.99387024]
[1673036705656,0.28372178,16984.0,16983.0,2.10957024]
[1673036705906,0.28372178,16984.0,16983.0,2.30957024]
[1673036706662,0.28372178,16984.0,16983.0,3.00957024]
[1673036707188,0.28357178,16984.0,16983.0,3.00957024]
[1673036709040,0.28372178,16984.0,16983.0,3.00957024]
[1673036709289,0.28372178,16984.0,16983.0,3.009409]
[1673036710317,0.28372178,16984.0,16983.0,2.10957024]
[1673036710834,0.28357178,16984.0,16983.0,2.10957024]
[1673036712872,0.28372178,16984.0,16983.0,2.10957024]
[1673036713370,0.28372178,16984.0,16983.0,3.20957024]
[1673036714884,0.28357178,16984.0,16983.0,3.20957024]
[1673036715639,0.28357178,16984.0,16983.0,4.35017024]
[1673036715895,0.28357178,16984.0,16983.0,4.38580958]
[1673036716715,0.28372178,16984.0,16983.0,4.38580958]
[1673036716974,0.00015,16984.0,16983.0,4.39430958]
[1673036718290,0.77588654,16987.0,16984.0,1.0191]
[1673036718540,0.77588654,16987.0,16986.0,0.8661]
[1673036718787,0.77588654,16987.0,16986.0,2.649401]
[1673036718788,0.6,16987.0,16986.0,2.649401]
[1673036719272,0.616,16987.0,16986.0,2.649401]
[1673036719769,0.6,16987.0,16986.0,3.349401]
[1673036720012,0.616,16987.0,16986.0,3.349401]
[1673036720265,0.60015,16987.0,16986.0,3.349401]
[1673036720510,0.61415,16987.0,16986.0,3.362401]
[1673036721251,0.61415,16987.0,16986.0,3.981501]
[1673036721512,0.61415,16987.0,16986.0,4.01714034]
[1673036722010,0.61415,16987.0,16986.0,4.01730155]
[1673036722264,0.614,16987.0,16986.0,4.01730155]
[1673036723778,0.78988654,16987.0,16986.0,4.01714034]
[1673036724029,1.05400665,16987.0,16986.0,3.981501]
[1673036724524,1.05415665,16987.0,16986.0,3.981501]
[1673036725532,1.05415665,16987.0,16986.0,3.461001]
[1673036726535,1.05400665,16987.0,16986.0,3.461001]
[1673036727040,1.23048554,16987.0,16986.0,2.761001]
[1673036727302,1.83275548,16987.0,16986.0,0.848761]
[1673036727584,2.00910029,16987.0,16986.0,0.2441]
[1673036727891,1.65688486,16987.0,16986.0,0.2441]
[1673036728135,1.21641994,16987.0,16986.0,0.2441]
[1673036728404,2.04530892,16987.0,16986.0,0.2441]
[1673036728690,2.04530892,16987.0,16986.0,0.2431]
[1673036728952,1.73130892,16987.0,16986.0,0.2311]
[1673036729220,1.73130892,16987.0,16986.0,0.2431]
[1673036729221,1.21741994,16987.0,16986.0,0.2431]
[1673036729735,1.21726994,16987.0,16986.0,0.847761]
[1673036730014,1.74615892,16987.0,16986.0,0.847761]
[1673036730263,1.21726994,16987.0,16986.0,0.847761]
[1673036730518,1.21726994,16987.0,16986.0,0.85083233]
[1673036730730,1.74615892,16987.0,16986.0,0.847761]
[1673036731304,2.04615892,16987.0,16986.0,0.847761]
[1673036731789,2.04630892,16987.0,16986.0,0.847761]
[1673036732037,2.04630892,16987.0,16986.0,0.012]
[1673036734046,2.04615892,16987.0,16986.0,0.012]
[1673036734560,1.81161194,16987.0,16986.0,0.012]
[1673036735070,1.80595394,16987.0,16986.0,0.012]
[1673036735837,3.07115006,16987.0,16986.0,0.012]
[1673036736352,3.37123742,16987.0,16986.0,0.012]
[1673036736608,3.3716989,16987.0,16986.0,0.012]
[1673036737380,2.70156691,16987.0,16986.0,0.012]
[1673036737655,3.37150194,16987.0,16986.0,0.012]
[1673036737894,3.37135194,16987.0,16986.0,0.012]
[1673036738401,2.70141691,16987.0,16986.0,0.012]
[1673036739410,2.70156691,16987.0,16986.0,0.012]
[1673036739662,2.70156691,16987.0,16986.0,0.01190328]
[1673036741202,2.70141691,16987.0,16986.0,0.01190328]
[1673036741470,1.80595394,16987.0,16986.0,0.01190328]
[1673036741713,2.04076097,16987.0,16986.0,0.01190328]
[1673036742760,1.74641897,16987.0,16986.0,0.01190328]
[1673036742998,1.74656897,16987.0,16986.0,0.01190328]
[1673036743499,2.04656897,16987.0,16986.0,0.01190328]
[1673036743752,1.74656897,16987.0,16986.0,0.01190328]
[1673036744010,1.74656897,16987.0,16984.0,0.70139028]
[1673036744269,0.44026989,16986.0,16985.0,0.604661]
[1673036744527,1.04026989,16986.0,16985.0,0.919261]
[1673036744779,1.2173386,16986.0,16985.0,2.212369]
[1673036745036,0.6173386,16986.0,16985.0,2.212369]
[1673036745540,0.6323386,16986.0,16985.0,2.213369]
[1673036746820,0.6324886,16986.0,16985.0,2.213369]
[1673036747813,0.36791355,16986.0,16985.0,2.013369]
[1673036748052,0.01515,16986.0,16985.0,2.013369]
[1673036748546,0.01515,16986.0,16985.0,1.419615]
[1673036748795,0.70468026,16986.0,16985.0,0.830861]
[1673036749049,0.68968026,16986.0,16985.0,0.599661]
[1673036749297,0.70468026,16986.0,16985.0,0.001]
[1673036750287,0.68968026,16986.0,16984.0,0.11260328]
[1673036750536,0.70468026,16986.0,16985.0,0.001]
[1673036750794,0.615,16986.0,16985.0,0.001]
[1673036751065,0.61515,16986.0,16985.0,0.606071]
[1673036751317,1.05611482,16986.0,16985.0,0.606071]
[1673036751562,1.05611482,16986.0,16985.0,0.1167]
[1673036751810,1.40887744,16986.0,16985.0,0.1167]
[1673036752049,1.39387744,16986.0,16985.0,0.1157]
[1673036752295,1.40887744,16986.0,16985.0,0.1157]
[1673036752573,1.39372744,16986.0,16985.0,0.1157]
[1673036752817,1.23233274,16986.0,16985.0,0.721771]
[1673036753062,1.05596482,16986.0,16985.0,0.721771]
[1673036754587,1.40871086,16986.0,16985.0,0.696771]
[1673036754834,1.40886086,16986.0,16985.0,0.696771]
[1673036756367,1.40871086,16986.0,16985.0,0.696771]
[1673036758164,1.40886086,16986.0,16985.0,0.696771]
[1673036759731,1.67347973,16986.0,16985.0,1.285525]
[1673036759979,1.67332973,16986.0,16985.0,1.285525]
[1673036760220,1.23236491,16986.0,16985.0,1.194825]
[1673036760492,1.23236491,16986.0,16985.0,1.310525]
[1673036760737,1.23236491,16986.0,16985.0,1.899279]
[1673036761772,1.23236491,16986.0,16985.0,2.714779]
[1673036762024,1.4089579,16986.0,16985.0,2.714779]
[1673036764005,0.80871086,16986.0,16985.0,2.714779]
[1673036764274,1.0734548,16986.0,16985.0,2.714779]
[1673036764746,1.40871086,16986.0,16985.0,2.714779]
[1673036764996,1.40871086,16986.0,16985.0,2.014779]
[1673036765496,1.40871086,16986.0,16985.0,1.426025]
[1673036765745,1.05596482,16986.0,16985.0,0.705254]
[1673036766029,0.61515,16986.0,16985.0,0.705254]
[1673036766272,0.61515,16986.0,16985.0,0.700254]
[1673036766522,1.17223496,16986.0,16984.0,0.70136128]
[1673036766786,0.44142931,16985.0,16984.0,0.70136128]
[1673036767022,1.70138399,16986.0,16984.0,0.81260328]
[1673036767523,1.70067529,16986.0,16984.0,0.11260328]
[1673036767774,1.68638399,16986.0,16984.0,0.11260328]
[1673036768017,0.015,16985.0,16984.0,0.11360328]
[1673036768266,1.45123399,16986.0,16984.0,0.11360328]
[1673036769116,1.45123399,16986.0,16984.0,0.11260328]
[1673036769320,1.46623399,16986.0,16984.0,0.12660328]
[1673036769817,0.44142927,16985.0,16984.0,0.12660328]
[1673036770090,1.46638399,16986.0,16984.0,0.12660328]
[1673036770361,0.44142891,16985.0,16984.0,0.12660328]
[1673036771115,1.46638399,16986.0,16984.0,0.12660328]
[1673036771408,1.46623399,16986.0,16984.0,0.12660328]
[1673036771967,0.65690675,16985.0,16984.0,0.014]
[1673036772206,0.65690675,16985.0,16982.0,1.322835]
[1673036772207,1.18605578,16985.0,16982.0,1.322835]
[1673036772465,0.54314903,16985.0,16984.0,0.1293]
[1673036772746,0.89414903,16985.0,16984.0,0.1153]
[1673036773015,0.89414903,16985.0,16984.0,0.1293]
[1673036773273,0.88429903,16985.0,16984.0,0.1293]
[1673036773529,1.18429903,16985.0,16984.0,0.1153]
[1673036774297,0.37915,16985.0,16984.0,0.1293]
[1673036775290,0.379,16985.0,16984.0,0.1293]
[1673036777058,0.37915,16985.0,16984.0,0.1293]
[1673036777559,1.35080426,16985.0,16984.0,0.014]
[1673036777836,1.95450226,16985.0,16984.0,0.014]
[1673036778112,1.93955826,16985.0,16984.0,0.014]
[1673036778587,3.14377128,16985.0,16984.0,0.014]
[1673036778830,3.231693,16985.0,16984.0,0.014]
[1673036779086,3.231543,16985.0,16984.0,0.014]
[1673036779631,2.53415831,16985.0,16980.0,0.01358614]
[1673036779864,0.52937647,16982.0,16980.0,0.01358614]
[1673036780116,0.80613583,16981.0,16980.0,0.01358614]
[1673036780886,0.98270975,16981.0,16980.0,0.01981177]
[1673036781131,0.98270975,16981.0,16980.0,0.13511177]
[1673036781387,1.1591507,16981.0,16980.0,0.13188614]
[1673036781644,0.98270975,16981.0,16980.0,0.13188614]
[1673036781898,1.15910092,16981.0,16980.0,0.13188614]
[1673036782154,0.8062056,16981.0,16980.0,0.12888614]
[1673036782401,0.8222056,16981.0,16980.0,0.13888614]
[1673036782658,0.8060556,16981.0,16980.0,0.12888614]
[1673036783176,0.8210556,16981.0,16980.0,0.13888614]
[1673036783445,1.17395092,16981.0,16980.0,0.13888614]
[1673036783697,0.99755975,16981.0,16980.0,0.13888614]
[1673036783940,0.99755975,16981.0,16980.0,0.02358614]
[1673036783941,1.74061254,16981.0,16980.0,0.02358614]
[1673036784200,1.27447671,16981.0,16980.0,0.02358614]
[1673036784576,1.56336971,16981.0,16980.0,0.02358614]
[1673036784735,1.86351971,16981.0,16979.0,0.01193165]
[1673036784971,1.44937095,16980.0,16979.0,0.01193165]
[1673036785734,1.27290227,16980.0,16979.0,0.01193165]
[1673036786244,1.28790227,16980.0,16979.0,0.01293165]
[1673036786736,0.63207001,16980.0,16979.0,0.01293165]
[1673036786998,0.44063611,16980.0,16979.0,0.01193165]
[1673036787255,0.45563611,16980.0,16979.0,0.01293165]
[1673036787499,0.015,16980.0,16979.0,1.30615565]
[1673036787741,0.015,16980.0,16979.0,1.32126465]
[1673036787984,0.78063611,16981.0,16979.0,1.32126465]
[1673036788239,0.78063611,16981.0,16980.0,0.720171]
[1673036788490,1.13353869,16981.0,16980.0,0.1151]
[1673036788753,0.95700106,16981.0,16980.0,0.1151]
[1673036789254,0.7805259,16981.0,16980.0,0.11526127]
[1673036789504,0.5162087,16981.0,16980.0,0.75818927]
[1673036789758,0.5312087,16981.0,16980.0,0.705028]
[1673036790002,0.5312087,16981.0,16980.0,1.310269]
[1673036790263,0.5312087,16981.0,16980.0,0.705028]
[1673036790517,0.5312087,16981.0,16980.0,1.293956]
[1673036791010,0.7955259,16981.0,16980.0,1.293956]
[1673036791265,0.7955259,16981.0,16980.0,0.705028]
[1673036792031,0.97200106,16981.0,16980.0,0.1161]
[1673036792311,1.41285589,16981.0,16980.0,0.1161]
[1673036792536,1.71281379,16981.0,16980.0,0.1161]
[1673036792788,0.97195564,16981.0,16980.0,0.1161]
[1673036793308,0.97195564,16981.0,16980.0,0.06710354]
[1673036793558,0.97184879,16981.0,16980.0,0.06710354]
[1673036794322,1.41270362,16981.0,16980.0,0.06710354]
[1673036794577,0.97184879,16981.0,16980.0,0.06710354]
[1673036794827,0.95681959,16981.0,16980.0,0.06610354]
[1673036795073,0.97281959,16981.0,16980.0,0.06710354]
[1673036795361,0.79629234,16981.0,16980.0,0.06710354]
[1673036796378,0.95681959,16981.0,16980.0,0.06610354]
[1673036796628,0.97181959,16981.0,16980.0,0.06710354]
[1673036797650,1.5831771,16981.0,16980.0,0.06710354]
[1673036797910,2.37668339,16981.0,16980.0,0.001]
[1673036798159,2.53979956,16981.0,16980.0,0.001]
[1673036798411,2.50972156,16981.0,16979.0,0.01193165]
[1673036798663,1.93682856,16981.0,16980.0,0.001]
[1673036798934,1.65125066,16981.0,16979.0,0.01193165]
[1673036799192,2.33656497,16981.0,16980.0,0.001]
[1673036799432,1.65125066,16981.0,16979.0,0.01193165]
[1673036799680,1.65125066,16981.0,16979.0,0.01293165]
[1673036799681,0.61654985,16980.0,16979.0,0.01293165]
[1673036799927,1.09270696,16980.0,16979.0,0.01293165]
[1673036800436,1.38163496,16980.0,16960.0,1.45148129]
[1673036800646,0.17616095,16978.0,16975.0,0.589068]
[1673036800924,0.17616095,16978.0,16975.0,1.178138]
[1673036801440,0.33989315,16977.0,16975.0,1.178138]
[1673036801688,0.5160541,16977.0,16975.0,0.58907]
[1673036802441,0.78029552,16977.0,16975.0,0.59007]
[1673036802695,0.78029552,16977.0,16975.0,0.58907]
[1673036802943,0.78029552,16977.0,16975.0,0.59007]
[1673036802944,0.79529552,16977.0,16975.0,0.59007]
[1673036803195,0.62591872,16976.0,16975.0,0.59007]
[1673036804431,0.61656332,16976.0,16974.0,0.589112]
[1673036804682,0.79279929,16976.0,16974.0,0.589112]
[1673036804937,0.73224621,16976.0,16973.0,0.60351042]
[1673036805183,0.71824621,16976.0,16973.0,1.19265542]
[1673036805448,0.19023597,16976.0,16973.0,1.19265542]
[1673036805693,0.44047739,16976.0,16973.0,0.60351042]
[1673036805940,1.05004147,16975.0,16973.0,0.60351042]
[1673036806437,1.05004147,16975.0,16973.0,0.01435942]
[1673036806684,1.05004147,16975.0,16971.0,0.02396268]
[1673036806938,1.05004147,16975.0,16964.0,1.82791261]
[1673036806939,0.69630808,16975.0,16972.0,1.289172]
[1673036807188,1.64454439,16976.0,16972.0,1.289172]
[1673036807189,2.34085247,16976.0,16972.0,1.289172]
[1673036807443,2.32587247,16976.0,16972.0,1.52684989]
[1673036807691,2.91496547,16976.0,16972.0,1.52684989]
[1673036807934,0.015,16975.0,16972.0,1.42684989]
[1673036808192,0.6,16974.0,16972.0,0.7]
[1673036808434,2.32345011,16974.0,16961.0,0.79492385]
[1673036808695,1.47259034,16973.0,16965.0,0.38509151]
[1673036808946,2.37197033,16972.0,16953.0,22.17377998]
[1673036809216,0.12942,16968.0,16967.0,0.30223367]
[1673036809464,0.71836767,16968.0,16967.0,0.30223367]
[1673036809718,0.71836767,16968.0,16967.0,0.65473934]
[1673036809979,0.71836767,16968.0,16967.0,0.39857269]
[1673036810475,0.59394767,16968.0,16967.0,0.39857269]
[1673036810730,0.59394767,16968.0,16967.0,0.44271203]
[1673036810986,0.59409767,16968.0,16967.0,0.44271203]
[1673036811267,1.40111596,16968.0,16967.0,0.43421203]
[1673036811525,1.40111596,16968.0,16967.0,0.39857269]
[1673036812297,1.41511596,16968.0,16967.0,0.39857269]
[1673036813062,1.41496596,16968.0,16967.0,0.39857269]
[1673036813817,1.41496596,16968.0,16966.0,0.6191]
[1673036814073,0.59394767,16967.0,16966.0,0.6191]
[1673036814330,0.59394767,16967.0,16966.0,0.62785031]
[1673036814595,0.59394767,16967.0,16966.0,1.25307195]
[1673036814852,0.59394767,16967.0,16966.0,1.26140365]
[1673036814853,0.59409767,16967.0,16966.0,1.26140365]
[1673036815364,0.60809767,16967.0,16966.0,1.25265334]
[1673036815887,0.60809767,16967.0,16966.0,1.26028681]
[1673036816672,0.60794767,16967.0,16966.0,1.26028681]
[1673036817443,0.76315581,16967.0,16966.0,0.65473934]
[1673036817948,1.39957552,16967.0,16966.0,0.65473934]
[1673036818460,0.76315581,16967.0,16966.0,0.65473934]
[1673036818709,0.76330581,16967.0,16966.0,0.65473934]
[1673036819006,0.76330581,16967.0,16966.0,1.25254975]
[1673036820027,0.76320998,16967.0,16966.0,1.25254975]
[1673036820530,0.76305998,16967.0,16966.0,1.24415334]
[1673036820778,0.76305998,16967.0,16966.0,0.6191]
[1673036822318,0.76320998,16967.0,16966.0,0.6191]
[1673036822548,1.34021548,16967.0,16966.0,0.6191]
[1673036824104,0.76320998,16967.0,16966.0,0.6191]
[1673036824362,0.76305998,16967.0,16966.0,1.21989678]
[1673036824582,0.76305998,16967.0,16966.0,0.6191]
[1673036826161,0.76320998,16967.0,16966.0,0.6191]
[1673036826626,0.75820998,16967.0,16966.0,0.6191]
[1673036828119,0.75805998,16967.0,16966.0,0.6191]
[1673036829984,0.75820998,16967.0,16966.0,0.6191]
[1673036830310,1.92832536,16967.0,16965.0,0.6191]
[1673036830501,0.59394767,16966.0,16965.0,0.6191]
[1673036830737,2.11525836,16966.0,16965.0,0.6191]
[1673036831745,2.12825836,16966.0,16965.0,0.6191]
[1673036832552,2.67461883,16966.0,16965.0,0.6191]
[1673036833830,2.67476883,16966.0,16965.0,0.6191]
[1673036835677,2.67461883,16966.0,16965.0,0.6191]
[1673036836169,3.26403283,16966.0,16964.0,0.02982818]
[1673036836436,0.59394767,16965.0,16964.0,0.02982818]
[1673036836697,0.74908037,16965.0,16963.0,0.62671116]
[1673036836967,1.94394767,16964.0,16963.0,0.62671116]
[1673036837200,2.14153718,16964.0,16963.0,0.62671116]
[1673036837448,2.14168718,16964.0,16963.0,0.6191]
[1673036837704,2.14168718,16964.0,16963.0,0.64908166]
[1673036837946,2.76295636,16964.0,16963.0,0.64908166]
[1673036839779,2.76280636,16964.0,16963.0,0.64908166]
[1673036840573,3.50973915,16964.0,16960.0,0.589596]
[1673036840802,3.50973915,16964.0,16955.0,0.79917998]
[1673036840803,0.64908166,16961.0,16955.0,0.79917998]
[1673036841056,0.64908166,16961.0,16950.0,1.0]
[1673036841057,0.79706472,16960.0,16957.0,0.7]
[1673036841315,2.35768068,16959.0,16957.0,0.21173706]
[1673036841572,1.38466001,16958.0,16957.0,0.054]
[1673036841926,1.99017121,16958.0,16953.0,0.589853]
[1673036842124,1.99017121,16958.0,16953.0,0.38450148]
[1673036842125,0.83162556,16957.0,16953.0,0.38450148]
[1673036842359,1.46112984,16956.0,16954.0,1.3191]
[1673036842625,0.59394767,16956.0,16954.0,1.3191]
[1673036842880,0.97668852,16957.0,16954.0,1.3191]
[1673036843131,0.81373744,16958.0,16954.0,1.3191]
[1673036843378,0.59394767,16958.0,16954.0,2.498758]
[1673036843628,0.013,16958.0,16956.0,0.6191]
[1673036843877,1.55277432,16959.0,16957.0,0.0085]
[1673036844127,0.98379448,16959.0,16958.0,0.6191]
[1673036844931,3.01622502,16959.0,16958.0,0.6191]
[1673036845186,4.06430481,16959.0,16958.0,0.61895]
[1673036845683,4.2263515,16959.0,16958.0,0.61895]
[1673036846194,4.13357796,16959.0,16955.0,0.61895]
[1673036846460,1.57086716,16957.0,16955.0,0.61895]
[1673036846716,2.75768511,16956.0,16955.0,0.61895]
[1673036846979,2.75768511,16956.0,16955.0,1.31895]
[1673036847772,2.75768511,16956.0,16954.0,0.64852267]
[1673036848026,3.32451505,16956.0,16954.0,0.64852267]
[1673036848241,3.33851505,16956.0,16954.0,0.64852267]
[1673036848787,1.34722629,16955.0,16954.0,0.66916201]
[1673036849804,1.34722629,16955.0,16954.0,0.03563934]
[1673036850067,0.81373744,16955.0,16954.0,0.03563934]
[1673036850318,2.10938338,16955.0,16954.0,0.03563934]
[1673036850581,2.27904749,16955.0,16954.0,0.65458934]
[1673036850832,2.27919749,16955.0,16954.0,0.65458934]
[1673036851612,2.27919749,16955.0,16954.0,0.03563934]
[1673036852128,0.01415,16955.0,16954.0,1.8225026]
[1673036852393,0.01415,16955.0,16954.0,2.15814194]
[1673036852650,0.01415,16955.0,16954.0,2.15801845]
[1673036852651,0.014,16955.0,16954.0,2.15801845]
[1673036852915,2.20856688,16957.0,16954.0,2.15801845]
[1673036853153,0.009,16955.0,16954.0,2.23914194]
[1673036853401,2.20856688,16957.0,16954.0,2.15814194]
[1673036853691,1.39482944,16957.0,16955.0,0.0085]
[1673036853949,1.39482944,16957.0,16956.0,1.798472]
[1673036854206,1.39482944,16957.0,16956.0,2.1449638]
[1673036854456,0.00015,16957.0,16956.0,2.1449638]
[1673036854731,0.80739038,16960.0,16958.0,0.61895]
[1673036854955,1.18790513,16961.0,16959.0,2.340237]
[1673036855221,0.64908166,16961.0,16959.0,1.806764]
[1673036855741,0.64908166,16961.0,16960.0,0.91895]
[1673036856016,0.64908166,16961.0,16960.0,1.806694]
[1673036856262,0.64908166,16961.0,16960.0,2.14233334]
[1673036856502,0.64923166,16961.0,16960.0,2.14233334]
[1673036856754,0.88690955,16961.0,16960.0,2.44800134]
[1673036857006,1.20635741,16961.0,16960.0,2.58600134]
[1673036857312,0.64923166,16961.0,16960.0,2.14233334]
[1673036857555,1.29266258,16961.0,16960.0,2.644694]
[1673036857802,1.29266258,16961.0,16960.0,2.506694]
[1673036858054,2.10005296,16961.0,16960.0,2.055072]
[1673036858301,2.10005296,16961.0,16960.0,1.45695]
[1673036858302,2.28305526,16961.0,16960.0,1.45695]
[1673036858547,2.28305526,16961.0,16960.0,0.75695]
[1673036858823,1.63962434,16961.0,16960.0,0.75695]
[1673036859071,0.83223396,16961.0,16960.0,0.75695]